bitfinex-derivatives/quotes_ETHF0:USTF0_20251005
["timestamp","ask_amount","ask_price","bid_price","bid_amount"]
[1759650880034,0.6502,4599.8,4599.7,0.5438]
[1759650880646,3.64,4600.7,4600.6,0.2148]
[1759650880841,0.2076,4600.4,4600.0,0.1333]
[1759650881141,0.7645,4600.0,4599.9,0.5438]
[1759650881339,0.9825,4600.0,4599.9,0.5438]
[1759650881538,0.9825,4600.0,4599.9,0.2148]
[1759650881744,0.4322,4599.8,4599.7,0.5438]
[1759650881944,0.4322,4599.8,4599.7,0.7685]
[1759650882344,0.4322,4599.8,4599.6,0.00158891]
[1759650882544,0.9825,4599.7,4599.6,0.00158891]
[1759650882742,3.81918153,4599.7,4599.6,0.00158891]
[1759650882938,0.9825,4599.7,4599.6,0.00158891]
[1759650883144,4.1903,4599.7,4599.6,0.00158891]
[1759650883347,7.01635952,4599.7,4599.6,0.00158891]
[1759650886452,6.24145952,4599.7,4599.6,0.44108891]
[1759650886645,0.2076,4600.2,4600.1,0.7685]
[1759650886952,0.6502,4600.2,4600.1,0.7685]
[1759650887853,0.4256,4600.2,4600.1,0.7685]
[1759650888053,0.00157767,4601.3,4601.2,0.7557]
[1759650888559,0.00157767,4601.3,4601.2,5.7557]
[1759650889252,0.00157767,4601.3,4601.2,5.3318]
[1759650892847,0.00157767,4601.3,4601.2,5.7557]
[1759650894359,0.00157767,4601.3,4601.2,0.7557]
[1759650894760,0.00157767,4601.3,4601.2,1.14678]
[1759650895269,0.00157767,4601.3,4601.2,6.14678]
[1759650896071,0.00157767,4601.3,4601.2,5.7557]
[1759650896267,0.00157767,4601.3,4601.2,0.7557]
[1759650898567,0.00157767,4601.3,4601.2,0.9737]
[1759650898766,0.00157767,4601.3,4601.2,5.9737]
[1759650899467,0.00157767,4601.3,4601.2,5.7557]
[1759650899673,0.00157767,4601.3,4601.2,0.9737]
[1759650900770,3.754,4602.9,4602.8,0.4239]
[1759650900974,0.7409,4602.1,4602.0,3.4191]
[1759650901275,0.3111,4602.7,4602.6,0.4239]
[1759650901478,0.3111,4602.7,4602.6,0.7557]
[1759650901671,0.00264619,4602.7,4602.6,0.7557]
[1759650902170,0.022,4602.9,4602.8,0.39094]
[1759650902372,1.03890345,4603.1,4603.0,0.3318]
[1759650902573,1.03890345,4603.1,4602.6,3.2078]
[1759650902574,0.3111,4602.9,4602.6,3.2078]
[1759650902772,0.72780345,4603.1,4602.6,3.2078]
[1759650902976,0.72780345,4603.1,4602.7,0.3318]
[1759650903172,0.73038383,4603.1,4602.7,0.00266437]
[1759650903379,1.04148383,4603.1,4602.8,0.3318]
[1759650903672,0.73038383,4603.1,4602.8,0.3318]
[1759650904073,0.68038383,4603.1,4603.0,0.1289]
[1759650904372,0.68038383,4603.1,4603.0,0.3318]
[1759650904577,0.3111,4603.0,4602.8,0.3318]
[1759650905069,0.3111,4603.0,4602.7,0.00266437]
[1759650905070,0.3111,4602.9,4602.7,0.00266437]
[1759650905274,0.7409,4602.8,4602.7,0.00266437]
[1759650905571,0.68038383,4603.1,4602.8,0.3318]
[1759650905772,1.42128383,4603.1,4603.0,0.2113]
[1759650905973,0.7409,4602.8,4602.7,0.00266437]
[1759650906167,0.1223,4603.0,4602.7,0.75836437]
[1759650906168,0.3111,4602.9,4602.7,0.75836437]
[1759650906375,0.7409,4602.8,4602.7,0.00266437]
[1759650906878,0.3111,4602.8,4602.7,0.75836437]
[1759650907478,0.7409,4602.8,4602.7,0.42656437]
[1759650908180,0.1223,4603.0,4602.7,0.75836437]
[1759650908383,0.3111,4603.0,4602.9,0.4239]
[1759650908678,0.68038383,4603.1,4602.9,0.7557]
[1759650908883,0.68038383,4603.1,4603.0,3.9635]
[1759650909086,1.42128383,4603.1,4602.7,0.00266437]
[1759650909283,0.5242,4602.8,4602.7,0.21396437]
[1759650909578,0.3111,4602.8,4602.7,0.42656437]
[1759650909784,0.5242,4602.8,4602.7,0.42656437]
[1759650910380,0.7409,4602.8,4602.7,0.00266437]
[1759650910586,5.0,4602.8,4601.8,3.2078]
[1759650910779,3.2078,4602.9,4601.8,3.2078]
[1759650910983,0.3111,4602.7,4601.8,3.2078]
[1759650911181,0.5242,4602.7,4602.6,0.2113]
[1759650911387,0.7422,4602.7,4602.6,0.2113]
[1759650911587,0.5242,4602.7,4602.6,0.21294241]
[1759650911882,0.5242,4602.7,4602.6,0.42554241]
[1759650912274,0.7409,4602.7,4602.6,0.42554241]
[1759650912477,0.3111,4602.7,4602.6,0.75734241]
[1759650912885,0.7409,4602.7,4602.6,0.42554241]
[1759650913088,0.7409,4602.7,4602.6,0.00164241]
[1759650913286,0.3111,4602.6,4601.8,3.2078]
[1759650913581,3.4258,4602.9,4601.8,3.2078]
[1759650913784,0.5291,4602.8,4601.9,0.3318]
[1759650913981,0.5291,4602.8,4601.8,3.2078]
[1759650913982,0.5242,4602.8,4602.7,0.4239]
[1759650914182,0.7422,4602.8,4602.7,0.42594362]
[1759650914681,0.3111,4602.8,4602.7,0.42594362]
[1759650914886,3.4258,4602.9,4602.7,0.42594362]
[1759650914887,3.7369,4602.9,4602.8,0.7557]
[1759650915588,3.4258,4602.9,4602.8,0.7557]
[1759650916287,3.2078,4602.9,4602.8,0.7557]
[1759650916488,3.5189,4602.9,4602.8,0.7557]
[1759650916788,3.9487,4602.9,4602.8,0.2113]
[1759650917484,0.3353,4602.8,4602.7,0.00204362]
[1759650917681,0.551,4602.8,4602.7,0.41784362]
[1759650917882,3.2078,4602.9,4602.8,0.3117]
[1759650918086,1.11408383,4603.1,4603.0,0.2113]
[1759650918276,1.32638383,4603.1,4603.0,0.2113]
[1759650918685,1.66168383,4603.1,4603.0,0.2113]
[1759650918886,1.23368383,4603.1,4603.0,0.4158]
[1759650919085,1.23368383,4603.1,4603.0,0.7275]
[1759650919286,1.23138383,4603.1,4603.0,0.4158]
[1759650920383,1.44368383,4603.1,4603.0,0.4158]
[1759650921490,1.44368383,4603.1,4603.0,0.7275]
[1759650921890,1.44368383,4603.1,4603.0,0.4158]
[1759650923682,1.23138383,4603.1,4603.0,0.7275]
[1759650923882,0.68038383,4603.1,4603.0,5.8564]
[1759650924093,1.44368383,4603.1,4603.0,0.4158]
[1759650924794,1.44368383,4603.1,4603.0,0.7275]
[1759650925391,1.44368383,4603.1,4603.0,0.2113]
[1759650925591,0.7633,4602.8,4602.7,0.41784362]
[1759650925893,0.3353,4602.8,4602.7,0.72954362]
[1759650926191,0.3353,4603.0,4602.8,0.3117]
[1759650926395,0.6767,4603.0,4602.9,3.6236]
[1759650926596,0.889,4603.0,4602.9,0.4158]
[1759650926895,0.889,4603.0,4602.9,3.6236]
[1759650927598,0.889,4603.0,4602.9,3.4191]
[1759650928391,0.889,4603.0,4602.9,3.9353]
[1759650929389,1.94732284,4604.4,4603.1,9.773]
[1759650929589,0.3353,4606.3,4604.8,19.53873]
[1759650929793,0.1257,4606.5,4606.2,3.2078]
[1759650929994,0.1257,4605.0,4604.7,4.75665733]
[1759650930196,0.1257,4604.5,4603.4,3.2078]
[1759650930391,0.1257,4603.5,4603.4,0.00169008]
[1759650930592,0.1257,4603.5,4603.4,3.50716341]
[1759650930993,0.92009332,4603.5,4603.4,0.29767333]
[1759650931198,3.21000077,4604.5,4603.4,0.29767333]
[1759650931396,0.00601508,4604.0,4603.9,3.2078]
[1759650931592,0.00601508,4604.0,4603.9,0.29767333]
[1759650931792,0.1324,4604.5,4603.9,4.08320513]
[1759650931992,0.1324,4604.0,4603.9,3.37800475]
[1759650932194,0.1324,4604.5,4604.2,0.39082]
[1759650932391,3.2078,4606.9,4605.2,0.39073]
[1759650932598,0.1324,4606.5,4606.3,0.39064]
[1759650932793,0.1324,4610.0,4607.3,0.39056]
[1759650933005,0.1324,4608.5,4608.2,0.57554971]
[1759650933304,0.1324,4607.5,4607.3,0.00270959]
[1759650933501,0.1324,4607.5,4607.4,0.53154016]
[1759650933691,0.1324,4607.5,4607.4,0.31354016]
[1759650933895,0.1324,4607.5,4607.4,0.53154016]
[1759650934098,0.1324,4608.0,4607.9,3.37800475]
[1759650934405,0.13494369,4610.0,4607.9,7.46469604]
[1759650934697,211.886,4615.9,4607.9,7.46469604]
[1759650934698,0.1324,4614.0,4611.6,9.75493]
[1759650934898,0.1324,4612.5,4611.9,3.2078]
[1759650935098,0.1324,4613.0,4612.4,3.2078]
[1759650935294,0.1324,4613.0,4612.5,0.31354016]
[1759650935502,0.13461909,4613.0,4612.6,3.69154491]
[1759650935694,0.13461909,4613.0,4612.7,0.31354016]
[1759650935894,6.31465287,4613.0,4612.8,0.23216196]
[1759650936107,0.13461909,4613.0,4612.5,0.00167096]
[1759650936500,6.18003378,4612.9,4612.5,0.00167096]
[1759650936807,12.36006756,4612.9,4612.5,0.00167096]
[1759650937002,6.18003378,4612.9,4612.5,0.00167096]
[1759650937298,6.18003378,4612.9,4612.6,0.218]
[1759650937499,6.18003378,4612.9,4612.5,0.00167096]
[1759650938002,6.18003378,4612.9,4612.6,0.29389007]
[1759650938215,6.09865558,4612.9,4612.7,0.51189007]
[1759650938400,0.1324,4613.5,4613.2,0.39006]
[1759650938606,0.1324,4614.0,4613.4,6.58580475]
[1759650938799,0.1324,4614.0,4613.9,3.2078]
[1759650938995,0.1324,4614.0,4613.9,3.50169007]
[1759650939199,0.1324,4614.0,4613.9,7.09769482]
[1759650939403,0.13429176,4614.0,4613.9,11.87969482]
[1759650939602,0.13429176,4614.0,4613.9,6.87969482]
[1759650939808,0.13429176,4614.0,4613.9,3.2078]
[1759650940104,8.38184385,4614.0,4613.4,3.2078]
[1759650940304,0.1324,4613.4,4612.8,3.2078]
[1759650940609,0.1324,4614.5,4613.3,6.58580475]
[1759650940799,0.1324,4614.5,4613.8,3.2078]
[1759650940800,0.1324,4614.0,4613.8,3.2078]
[1759650941000,0.1324,4613.4,4613.2,3.2078]
[1759650941511,0.1324,4613.4,4612.7,3.2078]
[1759650941512,0.1324,4612.8,4612.7,3.2078]
[1759650941907,3.37995209,4612.8,4612.5,0.00167096]
[1759650942102,0.1324,4612.8,4612.5,0.00167096]
[1759650942305,0.1324,4615.1,4614.9,0.38991]
[1759650942500,0.1324,4615.1,4615.0,3.59600475]
[1759650942906,0.1324,4615.8,4615.7,0.38985]
[1759650943201,0.13442537,4615.8,4615.7,6.97565475]
[1759650943401,0.13442537,4615.8,4615.7,3.2078]
[1759650943620,7.36477746,4615.8,4613.7,6.58580475]
[1759650943809,0.1324,4614.4,4614.2,3.2078]
[1759650944112,0.1324,4614.4,4613.7,3.2078]
[1759650944314,0.1324,4613.7,4613.2,3.2078]
[1759650944806,2.23035209,4613.3,4612.7,3.2078]
[1759650945001,0.1324,4613.7,4612.8,3.2078]
[1759650945002,0.05215258,4613.0,4612.8,3.2078]
[1759650945509,10.43815209,4612.9,4612.5,0.00167096]
[1759650945807,0.05215258,4613.0,4612.5,6.80447571]
[1759650946011,0.05215258,4613.0,4612.8,0.39009]
[1759650946217,3.2078,4617.1,4613.4,3.2078]
[1759650946511,0.1324,4616.0,4615.0,6.58580475]
[1759650946702,0.1324,4616.0,4615.0,3.2078]
[1759650946908,2.36275209,4615.1,4615.0,3.2078]
[1759650947105,0.3587,4615.7,4615.5,0.38986]
[1759650947315,0.36072537,4615.8,4615.7,3.37800475]
[1759650947705,0.3587,4615.7,4615.6,3.2078]
[1759650949010,0.3587,4615.6,4614.6,3.2078]
[1759650949314,0.3587,4614.7,4614.6,0.38994]
[1759650949507,0.1387,4615.2,4614.7,0.217]
[1759650949508,0.3587,4615.1,4614.7,0.217]
[1759650949708,0.1387,4615.2,4614.8,0.31657605]
[1759650950007,0.4974,4615.2,4615.1,3.2078]
[1759650950203,0.00202537,4615.8,4615.1,3.91427605]
[1759650950502,0.1324,4616.0,4614.1,9.74972]
[1759650950503,0.1324,4616.0,4615.8,0.38984]
[1759650950702,0.1324,4616.0,4615.9,0.53357605]
[1759650951211,0.4911,4616.8,4616.2,0.38981]
[1759650951408,0.4911,4616.8,4616.7,3.2078]
[1759650951717,2.72361403,4616.8,4616.7,3.74372622]
[1759650952212,0.4974,4616.0,4615.9,3.2078]
[1759650952404,2.72775209,4616.0,4615.9,3.2078]
[1759650952611,0.3587,4615.9,4615.6,0.217]
[1759650953003,2.23035209,4615.7,4615.2,3.2078]
[1759650953215,2.58905209,4615.3,4615.2,3.21024233]
[1759650953403,7.58905209,4615.3,4614.2,3.2078]
[1759650953612,2.58905209,4614.3,4614.2,3.2078]
[1759650954516,2.58905209,4614.3,4614.2,3.21040216]
[1759650954517,0.3587,4614.3,4614.2,3.21040216]
[1759650954814,0.3587,4614.3,4614.2,6.58840691]
[1759650955405,2.58905209,4614.3,4614.2,3.21040216]
[1759650955612,7.58905209,4614.3,4614.2,3.21040216]
[1759650956007,10.79685209,4614.3,4613.8,0.00608]
[1759650956209,0.3587,4612.9,4612.3,3.2078]
[1759650956506,0.3587,4612.9,4608.6,9.76131]
[1759650956507,0.1387,4612.0,4611.3,3.2078]
[1759650956703,0.3587,4611.4,4611.3,3.4248]
[1759650956905,0.3587,4611.4,4611.3,6.80280475]
[1759650957109,0.36087426,4611.4,4611.3,6.80478125]
[1759650957302,0.31087426,4611.4,4611.3,6.80478125]
[1759650957511,0.31087426,4611.4,4611.3,3.4267765]
[1759650957710,0.31087426,4611.4,4611.3,3.2097765]
[1759650958118,0.1387,4612.0,4611.3,3.2097765]
[1759650958418,0.1387,4612.0,4611.9,3.2078]
[1759650958621,0.1387,4612.0,4611.3,3.2097765]
[1759650958922,2.23035209,4611.4,4611.3,3.2097765]
[1759650959110,2.23235489,4611.4,4611.3,3.2097765]
[1759650959318,0.0020028,4611.4,4611.3,3.2097765]
[1759650959613,0.0020028,4611.4,4611.3,3.4267765]
[1759650959818,0.1387,4612.0,4611.3,11.88091886]
[1759650960022,0.1387,4612.0,4611.9,3.2078]
[1759650960225,0.4974,4612.0,4611.9,3.2078]
[1759650960526,0.4974,4612.0,4611.9,3.71841253]
[1759650960817,0.50008692,4612.0,4611.9,3.71841253]
[1759650961217,0.28860284,4612.0,4611.9,3.71841253]
[1759650961516,0.1387,4613.0,4612.5,0.39011]
[1759650961717,0.1387,4613.0,4612.7,3.2078]
[1759650961916,0.1387,4613.0,4612.8,0.51061253]
[1759650962113,0.1387,4613.0,4612.9,0.29361253]
[1759650962313,5.1387,4613.0,4612.7,3.2078]
[1759650962513,0.1387,4612.3,4611.3,3.2097765]
[1759650962713,2.23035209,4611.4,4611.3,3.2097765]
[1759650962915,2.23035209,4611.5,4611.3,3.4267765]
[1759650963413,0.3587,4612.2,4611.6,0.3902]
[1759650963614,0.3587,4612.2,4612.1,3.2078]
[1759650963814,0.3587,4612.2,4612.1,3.4248]
[1759650964210,0.3587,4612.2,4612.1,3.72081433]
[1759650964415,0.3587,4612.9,4612.1,3.72081433]
[1759650964617,0.14099178,4613.0,4612.7,6.58580475]
[1759650964820,0.00229178,4613.0,4612.8,0.51301433]
[1759650965017,0.00229178,4613.0,4612.9,0.29601433]
[1759650965722,0.00229178,4613.0,4612.9,0.51301433]
[1759650966321,0.00229178,4613.0,4612.9,0.90310433]
[1759650966520,0.00229178,4613.0,4612.9,0.51301433]
[1759650967018,0.3587,4614.2,4613.4,0.39004]
[1759650967220,2.23035209,4613.7,4613.5,0.51301433]
[1759650967419,2.23035209,4613.7,4613.6,3.89384433]
[1759650967615,2.58905209,4613.7,4613.6,3.89384433]
[1759650967926,0.36133407,4613.7,4613.6,3.89384433]
[1759650968425,0.00263407,4613.7,4613.6,3.89384433]
[1759650968618,0.36133407,4613.7,4613.6,3.89384433]
[1759650969423,0.36133407,4613.7,4613.6,3.50381433]
[1759650969721,0.50003407,4613.7,4613.6,3.50381433]
[1759650970124,5.50003407,4613.7,4613.6,3.50381433]
[1759650970526,5.50003407,4613.7,4613.6,0.29601433]
[1759650970825,0.4974,4612.8,4612.7,3.2078]
[1759650971125,0.4974,4612.8,4611.3,0.96108946]
[1759650971126,0.4974,4612.8,4612.1,3.2078]
[1759650971425,3.2078,4612.2,4611.6,0.1415]
[1759650971819,3.2078,4612.2,4611.6,0.5195]
[1759650972023,3.2078,4612.2,4611.7,0.378]
[1759650972222,3.2078,4612.2,4611.6,0.3585]
[1759650972726,3.2078,4612.2,4611.7,0.217]
[1759650972926,3.2078,4612.7,4611.8,0.378]
[1759650973526,3.2078,4613.1,4611.8,0.378]
[1759650973727,3.2078,4613.1,4612.1,0.378]
[1759650973930,3.2078,4614.3,4613.0,4.41454021]
[1759650974228,0.2654,4615.7,4613.9,3.2078]
[1759650974535,3.2078,4615.9,4614.8,0.378]
[1759650974732,3.2078,4615.2,4614.8,0.378]
[1759650974928,3.20965692,4615.2,4614.6,3.2078]
[1759650975134,3.20965692,4615.2,4614.8,0.00279173]
[1759650975429,0.00185692,4615.2,4615.1,0.1415]
[1759650975636,0.00185692,4615.2,4615.1,3.9453]
[1759650976028,0.00185692,4615.2,4615.1,3.7273]
[1759650976229,0.00185692,4615.2,4615.1,3.9453]
[1759650976830,0.00185692,4615.2,4615.1,0.7375]
[1759650977128,3.20965692,4615.2,4614.8,0.00279173]
[1759650977334,0.00185692,4615.2,4614.9,0.218]
[1759650977534,3.7828,4616.8,4615.2,0.38989]
[1759650977835,3.7828,4616.8,4615.6,0.3971]
[1759650977836,3.5648,4616.8,4615.6,0.3971]
[1759650978233,3.5648,4616.8,4615.7,0.218]
[1759650978429,0.357,4616.1,4614.9,3.2078]
[1759650978738,3.2078,4615.7,4614.9,3.2078]
[1759650979033,3.2078,4615.7,4615.0,0.218]
[1759650979234,0.00178542,4616.1,4615.1,0.386]
[1759650979435,3.2078,4615.9,4615.0,0.3971]
[1759650979737,3.2078,4615.9,4615.0,0.6151]
[1759650980038,0.357,4615.8,4614.8,0.00279173]
[1759650980233,3.2078,4615.2,4614.8,0.00279173]
[1759650980433,3.5648,4615.2,4614.8,0.00279173]
[1759650980635,5.357,4615.1,4614.8,0.00279173]
[1759650980937,3.2078,4615.2,4614.8,0.00279173]
[1759650981141,3.2078,4615.2,4614.9,0.3971]
[1759650981730,3.2078,4615.2,4614.8,0.00279173]
[1759650981935,3.2078,4615.2,4614.8,0.20279173]
[1759650982137,3.2078,4615.9,4615.1,0.3899]
[1759650982334,0.00178542,4616.1,4615.2,0.3971]
[1759650982534,0.00178542,4616.1,4615.3,0.215]
[1759650982735,3.2078,4616.0,4615.2,0.78699]
[1759650982934,3.2078,4616.0,4615.2,0.3971]
[1759650983135,3.2078,4616.0,4615.3,0.217]
[1759650983533,3.2078,4616.0,4615.2,0.3971]
[1759650983732,3.2078,4616.0,4615.2,0.6141]
[1759650983938,3.2078,4616.0,4615.2,0.78699]
[1759650984139,3.2078,4616.0,4615.3,0.217]
[1759650984339,3.2078,4616.0,4615.4,0.217]
[1759650984634,3.2078,4616.0,4615.3,0.38988]
[1759650984934,3.2078,4616.0,4615.3,0.56488]
[1759650985136,0.00178542,4616.1,4615.6,0.38986]
[1759650985439,0.00178542,4616.1,4615.6,0.38985]
[1759650985738,0.00178542,4616.1,4615.4,0.3971]
[1759650985739,0.00178542,4616.1,4615.8,0.3971]
[1759650986739,3.15958542,4616.5,4615.8,0.3971]
[1759650987040,3.15958542,4616.5,4615.3,0.217]
[1759650987242,3.2078,4616.0,4615.2,0.3971]
[1759650987636,3.21040252,4616.0,4615.2,0.3971]
[1759650987836,0.357,4615.9,4615.1,3.2078]
[1759650988240,3.2078,4615.5,4614.8,0.00279173]
[1759650988647,0.357,4615.4,4614.8,0.00279173]
[1759650988841,0.217,4615.3,4614.8,0.00279173]
[1759650989146,0.357,4614.9,4614.8,0.00279173]
[1759650989539,5.357,4614.9,4614.8,0.00279173]
[1759650990041,3.2078,4615.0,4614.8,0.39272173]
[1759650990241,3.2078,4615.0,4614.8,0.00279173]
[1759650991436,0.3508,4614.9,4614.8,0.00279173]
[1759650993049,3.2078,4615.0,4614.9,0.4091]
[1759650993636,3.2078,4615.0,4614.8,0.00279173]
[1759650994050,3.2078,4615.0,4614.8,0.41189173]
[1759650994244,0.217,4615.4,4614.9,0.4091]
[1759650994452,3.2078,4615.0,4614.8,0.00279173]
[1759650995243,0.3508,4614.9,4614.8,0.00279173]
[1759650995446,5.3508,4614.9,4614.8,0.00279173]
[1759650996248,0.3508,4614.9,4614.8,0.00279173]
[1759650996455,0.5678,4614.9,4614.8,0.00279173]
[1759650998547,0.217,4614.9,4614.8,0.00279173]
[1759650998756,3.2078,4615.9,4615.0,0.1532]
[1759650999052,3.2078,4615.4,4614.8,0.00279173]
[1759651000853,3.2078,4615.4,4614.8,0.39271173]
[1759651001041,3.2078,4615.4,4615.0,0.3899]
[1759651001248,3.2078,4615.4,4615.1,0.4091]
[1759651001442,0.217,4615.6,4614.9,0.4091]
[1759651001648,0.217,4615.6,4615.0,0.38991]
[1759651001848,3.4248,4615.9,4615.1,0.38989]
[1759651003656,3.4248,4615.9,4615.3,0.38988]
[1759651003865,3.4248,4615.9,4615.2,0.38989]
[1759651004452,3.4248,4615.9,4614.9,0.79902]
[1759651004657,3.4248,4615.9,4614.9,0.4091]
[1759651005061,3.2078,4615.4,4614.8,0.00279173]
[1759651005256,3.5586,4615.4,4614.8,0.00279173]
[1759651005661,0.3508,4615.2,4614.8,0.00279173]
[1759651005867,0.348,4614.8,4613.9,3.77948674]
[1759651006166,0.348,4614.6,4613.9,3.2078]
[1759651006860,0.348,4614.6,4613.9,3.21037685]
[1759651007759,0.348,4614.6,4614.0,0.5692]
[1759651008360,0.217,4614.7,4614.0,0.5692]
[1759651008762,3.2078,4614.4,4614.0,0.4113]
[1759651008958,3.2078,4614.4,4614.1,0.4113]
[1759651009159,0.3406,4614.3,4613.9,0.00257685]
[1759651009361,2.85506597,4614.3,4613.0,0.57168674]
[1759651009565,0.338,4613.7,4612.3,0.57168674]
[1759651009764,0.4194,4613.0,4612.0,0.4113]
[1759651009972,0.338,4612.4,4612.0,0.4113]
[1759651010467,0.0024646,4612.4,4612.1,0.4113]
[1759651010967,0.0024646,4612.4,4612.0,0.16043063]
[1759651011263,0.0024646,4612.4,4612.1,0.4113]
[1759651011660,0.3404646,4612.4,4612.1,0.4113]
[1759651012163,0.3404646,4612.4,4612.0,0.00253063]
[1759651012164,0.338,4612.3,4612.0,0.00253063]
[1759651013057,0.338,4612.1,4612.0,0.00253063]
[1759651013263,0.556,4612.1,4612.0,0.00253063]
[1759651013465,3.4316663,4612.1,4612.0,0.00253063]
[1759651014171,0.0814,4612.0,4610.9,0.4113]
[1759651014373,3.2078,4611.0,4610.6,0.4113]
[1759651014671,3.2078,4611.0,4610.5,0.1579]
[1759651014868,3.2078,4611.0,4610.6,0.4113]
[1759651015066,3.2078,4611.0,4610.5,0.1579]
[1759651015260,0.218,4611.3,4610.6,0.4113]
[1759651015461,3.2078,4611.5,4611.1,0.4113]
[1759651015665,3.2078,4611.5,4611.2,0.4113]
[1759651016573,3.2078,4611.5,4611.0,0.1579]
[1759651016968,3.2078,4611.5,4611.1,0.4113]
[1759651017470,0.338,4611.4,4610.8,3.59806]
[1759651017766,0.338,4610.9,4610.5,0.00190688]
[1759651017972,3.2078,4611.0,4609.2,0.4113]
[1759651017973,0.338,4610.7,4609.2,0.4113]
[1759651018171,3.2078,4609.4,4609.2,0.4113]
[1759651018369,3.2078,4609.4,4608.5,0.5692]
[1759651018668,0.556,4609.5,4608.0,0.5692]
[1759651018669,3.2078,4608.9,4608.0,0.5692]
[1759651018874,0.218,4608.8,4608.1,0.4113]
[1759651019074,0.218,4608.8,4608.1,0.80179]
[1759651019270,0.00250417,4608.9,4608.4,3.2078]
[1759651019471,0.00250417,4608.9,4608.6,0.4113]
[1759651019676,0.00250417,4608.9,4608.0,4.39038089]
[1759651019873,0.00250417,4608.9,4608.1,0.218]
[1759651020068,0.00250417,4608.9,4608.0,4.23248089]
[1759651020276,0.00250417,4608.9,4608.0,0.57190821]
[1759651020574,0.338,4608.3,4608.0,0.00270821]
[1759651020878,0.338,4608.2,4608.0,0.00270821]
[1759651021072,0.338,4608.3,4608.0,0.00270821]
[1759651021970,0.00250417,4608.9,4608.6,0.4113]
[1759651022171,0.00250417,4608.9,4608.5,0.1579]
[1759651022566,0.00250417,4608.9,4608.7,0.39044]
[1759651022769,0.00250417,4608.9,4608.8,3.6191]
[1759651023175,3.2078,4609.5,4608.8,3.6191]
[1759651023478,3.2078,4609.5,4609.0,0.1579]
[1759651023679,3.2078,4609.5,4609.1,0.80171]
[1759651023971,0.338,4610.2,4609.2,0.4113]
[1759651023972,3.2078,4610.0,4609.2,0.4113]
[1759651024275,3.94247268,4611.5,4610.5,0.1579]
[1759651024276,3.2078,4611.1,4610.5,0.1579]
[1759651024481,3.2078,4611.1,4610.5,0.7872]
[1759651024877,3.2078,4611.1,4610.5,0.3759]
[1759651025175,3.2078,4611.6,4610.7,0.4113]
[1759651025381,0.00177175,4611.1,4611.0,0.5692]
[1759651025675,0.00177175,4611.1,4610.5,0.1579]
[1759651025871,3.2078,4611.6,4611.0,0.95945]
[1759651026072,3.2078,4612.2,4611.1,0.4113]
[1759651026276,3.2078,4612.2,4611.4,3.2078]
[1759651026476,3.2078,4612.2,4611.6,0.4113]
[1759651026873,0.338,4613.3,4611.6,0.4113]
[1759651026874,3.2078,4612.9,4612.1,0.4113]
[1759651027080,0.00229467,4612.2,4612.1,0.4113]
[1759651027273,0.00229467,4612.2,4612.1,0.6203]
[1759651028671,0.00229467,4612.2,4612.1,0.4113]
[1759651029574,0.00229467,4612.2,4611.6,0.0028152]
[1759651029776,0.00229467,4612.2,4611.6,0.4141152]
[1759651030281,0.00229467,4612.2,4611.8,0.4113]
[1759651030479,0.00229467,4612.2,4611.7,0.4113]
[1759651030681,0.00229467,4612.2,4611.8,0.218]
[1759651030874,0.00229467,4612.2,4611.9,0.4113]
[1759651031075,0.00229467,4612.2,4611.6,0.3930052]
[1759651031076,0.00229467,4612.2,4612.1,0.4113]
[1759651031275,0.00229467,4612.2,4612.1,3.6191]
[1759651031682,0.00229467,4612.2,4612.1,0.6293]
[1759651031884,0.00229467,4612.2,4612.1,3.8371]
[1759651032278,3.2078,4613.2,4612.9,0.39008]
[1759651032578,33.963,4615.0,4613.1,0.4113]
[1759651032579,3.2078,4613.8,4613.1,0.4113]
[1759651032783,3.4258,4614.4,4613.3,0.4113]
[1759651032984,3.2078,4613.9,4613.3,0.4113]
[1759651033179,3.2078,4613.9,4613.3,0.6293]
[1759651033486,0.07740484,4613.4,4613.3,0.6293]
[1759651033980,0.07740484,4613.4,4613.3,1.01935]
[1759651034278,0.07740484,4613.4,4613.3,0.4113]
[1759651034872,3.28520484,4613.4,4613.0,0.4113]
[1759651035079,0.338,4613.3,4612.5,0.5692]
[1759651035283,3.2078,4612.9,4612.6,0.4113]
[1759651036084,0.338,4613.3,4612.7,0.3901]
[1759651036276,3.28520484,4613.4,4612.6,0.4113]
[1759651036676,3.28520484,4613.4,4612.9,0.39008]
[1759651037079,3.28520484,4613.4,4613.2,0.3735]
[1759651037280,3.28520484,4613.4,4612.8,0.3735]
[1759651037483,3.28520484,4613.4,4613.1,0.3735]
[1759651037782,3.28520484,4613.4,4613.3,0.76355]
[1759651038187,3.28520484,4613.4,4613.3,0.3735]
[1759651038391,3.28520484,4613.4,4613.0,0.5357]
[1759651038689,3.28520484,4613.4,4613.0,0.1622]
[1759651038884,3.28520484,4613.4,4612.5,0.5314]
[1759651039278,3.2078,4612.9,4612.6,0.3735]
[1759651039484,3.5321,4612.9,4612.6,0.3735]
[1759651039884,0.3243,4612.8,4612.4,0.76362]
[1759651040081,0.3243,4612.8,4612.4,0.76363]
[1759651040385,3.2078,4612.9,4612.0,3.3657]
[1759651040582,3.2078,4612.9,4612.2,0.39014]
[1759651040783,0.3243,4612.8,4612.1,0.76365]
[1759651041079,0.3243,4612.3,4611.6,0.3763152]
[1759651041281,0.3243,4612.3,4611.7,0.39018]
[1759651041577,0.3243,4612.3,4612.1,0.39015]
[1759651041781,0.3243,4612.3,4611.7,0.3735]
[1759651042490,2.8442944,4612.2,4611.6,0.0028152]
[1759651042689,3.1685944,4612.2,4611.6,0.0028152]
[1759651042984,0.218,4612.1,4611.6,0.0028152]
[1759651043185,0.218,4612.1,4610.9,3.2078]
[1759651043186,0.3243,4611.6,4610.9,3.2078]
[1759651043389,0.3243,4611.6,4610.6,0.39027]
[1759651043589,0.3243,4611.6,4610.7,0.39026]
[1759651043590,2.83856901,4611.5,4610.7,0.39026]